[Event "*** Titled Tuesday Blitz"]
[Site "Chess.com"]
[Date "2019.10.01"]
[Round "9"]
[White "AliKa2810"]
[Black "Nbk90"]
[Result "1/2-1/2"]
[WhiteElo "2581"]
[BlackElo "2482"]
[TimeControl "180+2"]
[EndTime "15:18:36 PDT"]
[Termination "Game drawn by 50-move rule"]

1. e4 {[%clk 0:03:01.5]} 1... e5 {[%clk 0:02:57]} 2. Nf3 {[%clk 0:03:02.1]} 2...
Nc6 {[%clk 0:02:56.7]} 3. Bb5 {[%clk 0:03:03]} 3... a6 {[%clk 0:02:54.9]} 4. Ba4
{[%clk 0:03:04.1]} 4... g6 {[%clk 0:02:55.8]} 5. c3 {[%clk 0:02:59.5]} 5... Bg7
{[%clk 0:02:55.7]} 6. d4 {[%clk 0:03:00.5]} 6... exd4 {[%clk 0:02:56.5]} 7. Bg5
{[%clk 0:03:00.9]} 7... Nge7 {[%clk 0:02:54.3]} 8. O-O {[%clk 0:03:00.8]} 8...
b5 {[%clk 0:02:52.6]} 9. Bb3 {[%clk 0:03:00.4]} 9... h6 {[%clk 0:02:51.8]} 10.
Bh4 {[%clk 0:02:59.1]} 10... d6 {[%clk 0:02:49.4]} 11. Nxd4 {[%clk 0:02:57.8]}
11... Nxd4 {[%clk 0:02:47.4]} 12. cxd4 {[%clk 0:02:58.5]} 12... O-O {[%clk
0:02:45.8]} 13. Nc3 {[%clk 0:02:59.5]} 13... g5 {[%clk 0:02:38.5]} 14. Bg3
{[%clk 0:02:59.8]} 14... c5 {[%clk 0:02:32]} 15. dxc5 {[%clk 0:02:47.4]} 15...
dxc5 {[%clk 0:02:30.6]} 16. Qxd8 {[%clk 0:02:48]} 16... Rxd8 {[%clk 0:02:30.4]}
17. Nd5 {[%clk 0:02:49.6]} 17... Nc6 {[%clk 0:02:25.3]} 18. Rad1 {[%clk
0:02:44.7]} 18... Nd4 {[%clk 0:02:20]} 19. Ne7+ {[%clk 0:02:39]} 19... Kf8
{[%clk 0:02:18]} 20. Bd5 {[%clk 0:02:40.6]} 20... Ra7 {[%clk 0:01:52.7]} 21. Bd6
{[%clk 0:02:29.4]} 21... Rxe7 {[%clk 0:01:49.2]} 22. Bxc5 {[%clk 0:02:27.6]}
22... Ne2+ {[%clk 0:01:34.7]} 23. Kh1 {[%clk 0:02:27.6]} 23... Ke8 {[%clk
0:01:18.5]} 24. Rfe1 {[%clk 0:02:03.3]} 24... Nf4 {[%clk 0:01:13.4]} 25. Bc6+
{[%clk 0:01:30.2]} 25... Bd7 {[%clk 0:01:12]} 26. Bxe7 {[%clk 0:01:30.7]} 26...
Kxe7 {[%clk 0:01:12.2]} 27. Bb7 {[%clk 0:01:27.2]} 27... Bxb2 {[%clk 0:01:09.1]}
28. Bxa6 {[%clk 0:01:26.2]} 28... Bc3 {[%clk 0:01:06.5]} 29. Re3 {[%clk
0:01:25.8]} 29... b4 {[%clk 0:01:06.9]} 30. g3 {[%clk 0:01:26.7]} 30... Ne6
{[%clk 0:01:06.4]} 31. Bc4 {[%clk 0:01:21.4]} 31... Nc5 {[%clk 0:01:03.4]} 32.
Rf3 {[%clk 0:01:22.8]} 32... f6 {[%clk 0:00:56.4]} 33. Re3 {[%clk 0:01:16.9]}
33... Ra8 {[%clk 0:00:50]} 34. f3 {[%clk 0:01:16.6]} 34... Be6 {[%clk
0:00:48.5]} 35. Bd5 {[%clk 0:01:11.9]} 35... Ra6 {[%clk 0:00:42.5]} 36. f4
{[%clk 0:01:07.2]} 36... gxf4 {[%clk 0:00:41.4]} 37. gxf4 {[%clk 0:01:08.5]}
37... Bxd5 {[%clk 0:00:40]} 38. exd5+ {[%clk 0:00:43.2]} 38... Kd6 {[%clk
0:00:39.4]} 39. Re2 {[%clk 0:00:44.6]} 39... f5 {[%clk 0:00:36.4]} 40. Rg2
{[%clk 0:00:43.5]} 40... Ra5 {[%clk 0:00:23.6]} 41. Rg6+ {[%clk 0:00:43.1]}
41... Kd7 {[%clk 0:00:23.9]} 42. Rxh6 {[%clk 0:00:40.1]} 42... Rxa2 {[%clk
0:00:21.3]} 43. Rg1 {[%clk 0:00:29.1]} 43... Ne4 {[%clk 0:00:20.8]} 44. Rgg6
{[%clk 0:00:30.2]} 44... Nf2+ {[%clk 0:00:19.6]} 45. Kg1 {[%clk 0:00:31.6]}
45... Bd4 {[%clk 0:00:19.6]} 46. Rh7+ {[%clk 0:00:32.1]} 46... Bg7 {[%clk
0:00:14.5]} 47. Rhxg7+ {[%clk 0:00:30.5]} 47... Ke8 {[%clk 0:00:14.3]} 48. Rb7
{[%clk 0:00:27.3]} 48... Nh3+ {[%clk 0:00:09.6]} 49. Kf1 {[%clk 0:00:27.2]}
49... Ra1+ {[%clk 0:00:08.9]} 50. Kg2 {[%clk 0:00:22.6]} 50... Nxf4+ {[%clk
0:00:09.9]} 51. Kf3 {[%clk 0:00:21.8]} 51... Nxg6 {[%clk 0:00:11.1]} 52. d6
{[%clk 0:00:21.6]} 52... Rd1 {[%clk 0:00:11.2]} 53. Rxb4 {[%clk 0:00:21.8]}
53... Rxd6 {[%clk 0:00:10.6]} 54. Rb5 {[%clk 0:00:23.2]} 54... Rf6 {[%clk
0:00:10.5]} 55. Kg3 {[%clk 0:00:22.8]} 55... Kf7 {[%clk 0:00:11]} 56. h4 {[%clk
0:00:23.7]} 56... f4+ {[%clk 0:00:11.3]} 57. Kg4 {[%clk 0:00:24.7]} 57... f3
{[%clk 0:00:11.4]} 58. Rb1 {[%clk 0:00:22.6]} 58... f2 {[%clk 0:00:10.7]} 59.
Rf1 {[%clk 0:00:23.4]} 59... Ne5+ {[%clk 0:00:10.8]} 60. Kg3 {[%clk 0:00:24.6]}
60... Nd3 {[%clk 0:00:11.4]} 61. h5 {[%clk 0:00:26.1]} 61... Kg7 {[%clk
0:00:11.3]} 62. Kg2 {[%clk 0:00:27.3]} 62... Kh6 {[%clk 0:00:11.5]} 63. Rd1
{[%clk 0:00:28.6]} 63... Ne1+ {[%clk 0:00:11.4]} 64. Kf1 {[%clk 0:00:29.5]}
64... Kxh5 {[%clk 0:00:09.1]} 65. Rd2 {[%clk 0:00:31]} 65... Kg4 {[%clk
0:00:08.5]} 66. Rxf2 {[%clk 0:00:31.9]} 66... Nf3 {[%clk 0:00:09.8]} 67. Rg2+
{[%clk 0:00:25.3]} 67... Kf4 {[%clk 0:00:09.1]} 68. Rg8 {[%clk 0:00:25.8]} 68...
Ke3 {[%clk 0:00:07.5]} 69. Re8+ {[%clk 0:00:26.7]} 69... Kf4 {[%clk 0:00:08.1]}
70. Kf2 {[%clk 0:00:26.2]} 70... Ng5 {[%clk 0:00:07.1]} 71. Ke2 {[%clk
0:00:25.3]} 71... Ne4 {[%clk 0:00:07.5]} 72. Kd3 {[%clk 0:00:25]} 72... Rd6+
{[%clk 0:00:08.1]} 73. Kc4 {[%clk 0:00:25.6]} 73... Ke3 {[%clk 0:00:08.7]} 74.
Rh8 {[%clk 0:00:23.1]} 74... Rd4+ {[%clk 0:00:08.8]} 75. Kb5 {[%clk 0:00:23.8]}
75... Rd5+ {[%clk 0:00:07.2]} 76. Kc6 {[%clk 0:00:23.7]} 76... Rc5+ {[%clk
0:00:07]} 77. Kb6 {[%clk 0:00:24.9]} 77... Rd5 {[%clk 0:00:06.8]} 78. Kc6 {[%clk
0:00:25.8]} 78... Rd2 {[%clk 0:00:05.2]} 79. Rh3+ {[%clk 0:00:24.3]} 79... Kd4
{[%clk 0:00:05.4]} 80. Rh4 {[%clk 0:00:24]} 80... Rc2+ {[%clk 0:00:06]} 81. Kb5
{[%clk 0:00:22.4]} 81... Kd5 {[%clk 0:00:05]} 82. Rh5+ {[%clk 0:00:23.2]} 82...
Kd4 {[%clk 0:00:05.6]} 83. Rh4 {[%clk 0:00:24.6]} 83... Rc8 {[%clk 0:00:06.3]}
84. Kb4 {[%clk 0:00:23.6]} 84... Rb8+ {[%clk 0:00:06.3]} 85. Ka4 {[%clk
0:00:24.9]} 85... Kd3 {[%clk 0:00:05.5]} 86. Ka5 {[%clk 0:00:26.2]} 86... Rb2
{[%clk 0:00:03.8]} 87. Ka6 {[%clk 0:00:24.3]} 87... Nd6 {[%clk 0:00:04.2]} 88.
Rh6 {[%clk 0:00:24.2]} 88... Nc4 {[%clk 0:00:03.4]} 89. Rh3+ {[%clk 0:00:17.8]}
89... Kd4 {[%clk 0:00:04]} 90. Rh4+ {[%clk 0:00:19.1]} 90... Kc3 {[%clk
0:00:04.8]} 91. Rh3+ {[%clk 0:00:19.8]} 91... Kb4 {[%clk 0:00:05.7]} 92. Kb7
{[%clk 0:00:18.2]} 92... Ra2 {[%clk 0:00:06]} 93. Rh1 {[%clk 0:00:17.5]} 93...
Rd2 {[%clk 0:00:06.6]} 94. Kc6 {[%clk 0:00:17.5]} 94... Rd6+ {[%clk 0:00:05.7]}
95. Kc7 {[%clk 0:00:18.4]} 95... Rg6 {[%clk 0:00:06.1]} 96. Rb1+ {[%clk
0:00:19.1]} 96... Kc5 {[%clk 0:00:05.9]} 97. Rc1 {[%clk 0:00:20.6]} 97... Rg7+
{[%clk 0:00:05.5]} 98. Kd8 {[%clk 0:00:18.7]} 98... Kd6 {[%clk 0:00:05.5]} 99.
Rd1+ {[%clk 0:00:18.7]} 99... Ke6 {[%clk 0:00:06.1]} 100. Re1+ {[%clk
0:00:16.8]} 100... Ne5 {[%clk 0:00:06.1]} 101. Kc8 {[%clk 0:00:18.1]} 101... Rh7
{[%clk 0:00:06.9]} 102. Kb8 {[%clk 0:00:16.1]} 102... Kd6 {[%clk 0:00:07.2]}
103. Rd1+ {[%clk 0:00:16.4]} 103... Kc5 {[%clk 0:00:07.8]} 104. Rc1+ {[%clk
0:00:16.8]} 104... Kb6 {[%clk 0:00:08]} 105. Rb1+ {[%clk 0:00:17.1]} 105... Kc6
{[%clk 0:00:08.4]} 106. Rc1+ {[%clk 0:00:18.2]} 106... Kd6 {[%clk 0:00:08.9]}
107. Rd1+ {[%clk 0:00:19.5]} 107... Kc5 {[%clk 0:00:09.1]} 108. Rc1+ {[%clk
0:00:20.7]} 108... Nc4 {[%clk 0:00:09.5]} 109. Kc8 {[%clk 0:00:21.5]} 109... Rg7
{[%clk 0:00:09.6]} 110. Rc2 {[%clk 0:00:21.7]} 110... Kd5 {[%clk 0:00:08.6]}
111. Kb8 {[%clk 0:00:21.4]} 111... Ne5 {[%clk 0:00:07.2]} 112. Rd2+ {[%clk
0:00:21.6]} 112... Kc6 {[%clk 0:00:07.3]} 113. Rc2+ {[%clk 0:00:22.9]} 113...
Kb5 {[%clk 0:00:08]} 114. Rb2+ {[%clk 0:00:24.1]} 114... Kc4 {[%clk 0:00:08.5]}
115. Rc2+ {[%clk 0:00:25.3]} 115... Kb4 {[%clk 0:00:09.1]} 116. Rb2+ {[%clk
0:00:26.3]} 1/2-1/2

[Event "*** Titled Tuesday Blitz"]
[Site "Chess.com"]
[Date "2019.10.01"]
[Round "10"]
[White "pedroholly22"]
[Black "TST2014"]
[Result "0-1"]
[WhiteElo "2330"]
[BlackElo "2541"]
[TimeControl "180+2"]
[EndTime "15:22:37 PDT"]
[Termination "TST2014 won by resignation"]

1. Nf3 {[%clk 0:03:01.9]} 1... Nf6 {[%clk 0:03:00.7]} 2. d4 {[%clk 0:03:01.6]}
2... g6 {[%clk 0:03:01.7]} 3. g3 {[%clk 0:03:02.2]} 3... Bg7 {[%clk 0:03:03]} 4.
Bg2 {[%clk 0:03:03.8]} 4... O-O {[%clk 0:03:04.1]} 5. O-O {[%clk 0:03:05.4]}
5... d6 {[%clk 0:03:05.1]} 6. c4 {[%clk 0:03:06.9]} 6... c5 {[%clk 0:03:05.4]}
7. Nc3 {[%clk 0:03:06.9]} 7... Nc6 {[%clk 0:03:06]} 8. d5 {[%clk 0:03:07.1]}
8... Na5 {[%clk 0:03:05.7]} 9. Qd3 {[%clk 0:03:08.3]} 9... a6 {[%clk 0:03:01.4]}
10. b3 {[%clk 0:03:04.8]} 10... Bf5 {[%clk 0:02:57.9]} 11. Qe3 {[%clk
0:02:59.3]} 11... b5 {[%clk 0:02:51.9]} 12. cxb5 {[%clk 0:02:51.7]} 12... axb5
{[%clk 0:02:52.8]} 13. Nh4 {[%clk 0:02:37.2]} 13... b4 {[%clk 0:02:36.8]} 14.
Nxf5 {[%clk 0:02:36.2]} 14... gxf5 {[%clk 0:02:34.2]} 15. Na4 {[%clk 0:02:30.7]}
15... Ne4 {[%clk 0:01:56.2]} 16. Bxe4 {[%clk 0:02:27.5]} 16... fxe4 {[%clk
0:01:57.3]} 17. Rb1 {[%clk 0:02:23.7]} 17... f5 {[%clk 0:01:58.2]} 18. Bd2
{[%clk 0:02:21.5]} 18... Qe8 {[%clk 0:01:57]} 19. f3 {[%clk 0:02:19.2]} 19...
Bd4 {[%clk 0:01:56.3]} 20. fxe4 {[%clk 0:02:17.2]} 20... Bxe3+ {[%clk
0:01:55.8]} 21. Bxe3 {[%clk 0:02:17.3]} 21... fxe4 {[%clk 0:01:55.7]} 22. Bh6
{[%clk 0:02:16.3]} 22... Rf6 {[%clk 0:01:54.1]} 23. Bg5 {[%clk 0:02:16.2]} 23...
Rxf1+ {[%clk 0:01:53.6]} 0-1

[Event "*** Titled Tuesday Blitz"]
[Site "Chess.com"]
[Date "2019.10.01"]
[Round "10"]
[White "santosalberto1987"]
[Black "j_coca"]
[Result "1-0"]
[WhiteElo "2369"]
[BlackElo "2119"]
[TimeControl "180+2"]
[EndTime "15:22:59 PDT"]
[Termination "santosalberto1987 won by resignation"]

1. e4 {[%clk 0:02:57.5]} 1... g6 {[%clk 0:02:57.7]} 2. d4 {[%clk 0:02:58.1]}
2... Bg7 {[%clk 0:02:59]} 3. Nc3 {[%clk 0:02:59.6]} 3... d6 {[%clk 0:03:00]} 4.
Be3 {[%clk 0:03:00.6]} 4... Nc6 {[%clk 0:02:56.2]} 5. Qd2 {[%clk 0:02:59.9]}
5... e5 {[%clk 0:02:56.4]} 6. Nge2 {[%clk 0:03:00.5]} 6... f5 {[%clk 0:02:55.8]}
7. exf5 {[%clk 0:03:01.5]} 7... Bxf5 {[%clk 0:02:50.1]} 8. O-O-O {[%clk
0:02:59.5]} 8... Nf6 {[%clk 0:02:50.1]} 9. dxe5 {[%clk 0:02:59]} 9... Nxe5
{[%clk 0:02:50.6]} 10. Nd4 {[%clk 0:02:59.8]} 10... Bd7 {[%clk 0:02:50.2]} 11.
f4 {[%clk 0:02:53]} 11... Neg4 {[%clk 0:02:49]} 12. Bc4 {[%clk 0:02:53.9]} 12...
c6 {[%clk 0:02:46.9]} 13. Rhe1 {[%clk 0:02:42.5]} 13... d5 {[%clk 0:02:47.2]}
14. Bg1+ {[%clk 0:02:43.4]} 14... Kf7 {[%clk 0:02:41.1]} 15. Bb3 {[%clk
0:02:41.1]} 15... Re8 {[%clk 0:02:40.1]} 16. Nf3 {[%clk 0:02:40.2]} 16... Qc7
{[%clk 0:02:37.4]} 17. h3 {[%clk 0:02:28.1]} 17... Nh6 {[%clk 0:02:32.3]} 18. g4
{[%clk 0:02:29.4]} 18... Nhg8 {[%clk 0:02:31.7]} 19. Ng5+ {[%clk 0:02:30]} 19...
Kf8 {[%clk 0:02:31.6]} 20. Bc5+ {[%clk 0:02:30.7]} 20... Ne7 {[%clk 0:02:29.8]}
21. Ne6+ {[%clk 0:02:04.2]} 21... Bxe6 {[%clk 0:02:29.6]} 22. Rxe6 {[%clk
0:02:05.8]} 22... b6 {[%clk 0:02:25.9]} 23. Bd6 {[%clk 0:02:05.7]} 23... Qd7
{[%clk 0:02:26.4]} 24. Rde1 {[%clk 0:02:06.6]} 24... Ng8 {[%clk 0:02:25.8]} 25.
Nxd5 {[%clk 0:01:57.9]} 25... cxd5 {[%clk 0:02:25.6]} 26. Qxd5 {[%clk
0:01:58.8]} 26... Rad8 {[%clk 0:02:12.8]} 27. Rxe7 {[%clk 0:01:59]} 1-0

[Event "*** Titled Tuesday Blitz"]
[Site "Chess.com"]
[Date "2019.10.01"]
[Round "10"]
[White "731291"]
[Black "vova-79"]
[Result "1/2-1/2"]
[WhiteElo "2646"]
[BlackElo "2485"]
[TimeControl "180+2"]
[EndTime "15:23:00 PDT"]
[Termination "Game drawn by agreement"]

1. d4 {[%clk 0:03:01.9]} 1... d5 {[%clk 0:03:00]} 2. Nf3 {[%clk 0:03:02.8]} 2...
Nf6 {[%clk 0:03:00.2]} 3. c4 {[%clk 0:03:04]} 3... c6 {[%clk 0:03:01]} 4. Nc3
{[%clk 0:03:04.8]} 4... e6 {[%clk 0:03:01.5]} 5. e3 {[%clk 0:03:05.5]} 5... Nbd7
{[%clk 0:03:01.4]} 6. Qc2 {[%clk 0:03:03.6]} 6... Bd6 {[%clk 0:03:01.2]} 7. b3
{[%clk 0:03:02.5]} 7... O-O {[%clk 0:02:59.3]} 8. cxd5 {[%clk 0:02:57.8]} 8...
exd5 {[%clk 0:02:57.6]} 9. Bd3 {[%clk 0:02:58.5]} 9... Re8 {[%clk 0:02:56.8]}
10. O-O {[%clk 0:02:59.8]} 10... Nf8 {[%clk 0:02:52.8]} 11. Bb2 {[%clk
0:03:00.6]} 11... Ng6 {[%clk 0:02:53.1]} 12. a4 {[%clk 0:02:43.9]} 12... Qe7
{[%clk 0:02:48.4]} 13. a5 {[%clk 0:02:42.6]} 13... Bg4 {[%clk 0:02:45.2]} 14.
Nd2 {[%clk 0:02:42.6]} 14... Bd7 {[%clk 0:02:29]} 15. Na4 {[%clk 0:02:33.4]}
15... Rad8 {[%clk 0:02:09]} 16. Nc5 {[%clk 0:02:31]} 16... Bc8 {[%clk
0:02:09.4]} 17. b4 {[%clk 0:02:30.8]} 17... Ng4 {[%clk 0:02:04.6]} 18. Nf3
{[%clk 0:02:15.9]} 18... b6 {[%clk 0:01:59.2]} 19. axb6 {[%clk 0:02:09.5]} 19...
axb6 {[%clk 0:02:01.1]} 20. Na6 {[%clk 0:02:08.3]} 1/2-1/2

[Event "*** Titled Tuesday Blitz"]
[Site "Chess.com"]
[Date "2019.10.01"]
[Round "10"]
[White "MarcoRiehle"]
[Black "Natalya_Buksa"]
[Result "1-0"]
[WhiteElo "2582"]
[BlackElo "2454"]
[TimeControl "180+2"]
[EndTime "15:23:21 PDT"]
[Termination "MarcoRiehle won by resignation"]

1. e4 {[%clk 0:03:01.9]} 1... c5 {[%clk 0:02:19.1]} 2. a3 {[%clk 0:03:00.9]}
2... Nc6 {[%clk 0:02:10.3]} 3. b4 {[%clk 0:03:00.9]} 3... cxb4 {[%clk
0:02:11.1]} 4. axb4 {[%clk 0:03:02.8]} 4... Nxb4 {[%clk 0:02:10.5]} 5. c3 {[%clk
0:03:04.2]} 5... Nc6 {[%clk 0:02:10.5]} 6. d4 {[%clk 0:03:05.8]} 6... d5 {[%clk
0:02:12.2]} 7. exd5 {[%clk 0:03:07.7]} 7... Qxd5 {[%clk 0:02:13.2]} 8. Na3
{[%clk 0:03:09.1]} 8... a6 {[%clk 0:02:12.1]} 9. Nb5 {[%clk 0:03:08.4]} 9... Qd8
{[%clk 0:02:12.1]} 10. d5 {[%clk 0:02:54.7]} 10... Na7 {[%clk 0:02:08.7]} 11.
Nxa7 {[%clk 0:02:31.1]} 11... Rxa7 {[%clk 0:02:08.7]} 12. Be3 {[%clk 0:02:32.3]}
12... Ra8 {[%clk 0:02:09.5]} 13. Nf3 {[%clk 0:02:31]} 13... Nf6 {[%clk
0:02:10.6]} 14. Ne5 {[%clk 0:02:23.5]} 14... Qxd5 {[%clk 0:01:51.9]} 15. Qxd5
{[%clk 0:02:21.4]} 15... Nxd5 {[%clk 0:01:52.8]} 16. Bb5+ {[%clk 0:02:22.6]}
16... Kd8 {[%clk 0:01:20.2]} 17. Nxf7+ {[%clk 0:02:04.5]} 17... Kc7 {[%clk
0:01:22.1]} 18. Nxh8 {[%clk 0:02:05.3]} 18... e5 {[%clk 0:01:23.1]} 19. Nf7
{[%clk 0:02:00.4]} 19... Nxc3 {[%clk 0:01:19.7]} 20. Bd3 {[%clk 0:01:53.5]}
20... Bb4 {[%clk 0:01:17.3]} 21. O-O {[%clk 0:01:54.5]} 21... Be6 {[%clk
0:01:18.5]} 1-0

[Event "*** Titled Tuesday Blitz"]
[Site "Chess.com"]
[Date "2019.10.01"]
[Round "10"]
[White "ExploringChess"]
[Black "Keranke"]
[Result "1-0"]
[WhiteElo "2966"]
[BlackElo "2815"]
[TimeControl "180+2"]
[EndTime "15:23:23 PDT"]
[Termination "ExploringChess won by resignation"]

1. e4 {[%clk 0:03:01.9]} 1... g6 {[%clk 0:03:00.3]} 2. d3 {[%clk 0:03:01.4]}
2... Bg7 {[%clk 0:03:01.2]} 3. Nd2 {[%clk 0:03:01.6]} 3... Nf6 {[%clk
0:03:01.8]} 4. Ngf3 {[%clk 0:03:01.3]} 4... O-O {[%clk 0:03:02.8]} 5. g3 {[%clk
0:03:02.5]} 5... d5 {[%clk 0:03:02.9]} 6. Bg2 {[%clk 0:03:01.8]} 6... c5 {[%clk
0:03:02.8]} 7. O-O {[%clk 0:02:57.6]} 7... Nc6 {[%clk 0:03:03.7]} 8. Re1 {[%clk
0:02:57.7]} 8... e5 {[%clk 0:03:03.7]} 9. exd5 {[%clk 0:02:55.3]} 9... Nxd5
{[%clk 0:03:05.6]} 10. a4 {[%clk 0:02:53.4]} 10... h6 {[%clk 0:03:04]} 11. Nc4
{[%clk 0:02:53.8]} 11... Re8 {[%clk 0:03:04.7]} 12. c3 {[%clk 0:02:50.9]} 12...
Bf5 {[%clk 0:03:01.9]} 13. a5 {[%clk 0:02:49.3]} 13... Qd7 {[%clk 0:02:58.9]}
14. Be3 {[%clk 0:02:47.4]} 14... Nxe3 {[%clk 0:02:58.1]} 15. Nxe3 {[%clk
0:02:38.7]} 15... Bxd3 {[%clk 0:02:56.7]} 16. Nd2 {[%clk 0:02:39.3]} 16... Rad8
{[%clk 0:02:42.3]} 17. Ne4 {[%clk 0:02:37.9]} 17... Qe7 {[%clk 0:02:35]} 18. Qb3
{[%clk 0:02:38.1]} 18... Kh8 {[%clk 0:01:59.9]} 19. Nd5 {[%clk 0:02:34.9]} 19...
c4 {[%clk 0:01:58.9]} 20. Qb5 {[%clk 0:02:31.6]} 20... Qf8 {[%clk 0:01:46.2]}
21. a6 {[%clk 0:02:26.9]} 21... Rb8 {[%clk 0:01:39.2]} 22. axb7 {[%clk
0:02:25.1]} 22... Nd8 {[%clk 0:01:40.2]} 23. Nc5 {[%clk 0:02:22.5]} 23... Nxb7
{[%clk 0:01:26.3]} 24. Nxb7 {[%clk 0:02:20.2]} 24... e4 {[%clk 0:01:27.9]} 25.
Rxa7 {[%clk 0:02:17.1]} 25... f5 {[%clk 0:01:28.8]} 26. Qd7 {[%clk 0:02:14.3]}
26... Ra8 {[%clk 0:01:24.4]} 27. Nf4 {[%clk 0:02:12.2]} 1-0

[Event "*** Titled Tuesday Blitz"]
[Site "Chess.com"]
[Date "2019.10.01"]
[Round "10"]
[White "GianmarcoVaR"]
[Black "bascheyaro"]
[Result "0-1"]
[WhiteElo "2598"]
[BlackElo "2756"]
[TimeControl "180+2"]
[EndTime "15:23:52 PDT"]
[Termination "bascheyaro won by resignation"]

1. Nf3 {[%clk 0:03:01.9]} 1... Nf6 {[%clk 0:02:58.3]} 2. g3 {[%clk 0:03:03.5]}
2... d5 {[%clk 0:02:57.5]} 3. Bg2 {[%clk 0:03:05.4]} 3... Bf5 {[%clk 0:02:58.3]}
4. O-O {[%clk 0:03:06.4]} 4... e6 {[%clk 0:02:59]} 5. Nh4 {[%clk 0:03:06.5]}
5... Be4 {[%clk 0:02:58.2]} 6. f3 {[%clk 0:03:02.7]} 6... Bg6 {[%clk 0:02:58.8]}
7. f4 {[%clk 0:02:50]} 7... Be4 {[%clk 0:02:57.4]} 8. Nf3 {[%clk 0:02:51.1]}
8... c5 {[%clk 0:02:56.5]} 9. d3 {[%clk 0:02:52.4]} 9... Bg6 {[%clk 0:02:56.9]}
10. Nh4 {[%clk 0:02:51]} 10... Nc6 {[%clk 0:02:57.2]} 11. Qe1 {[%clk 0:02:48.3]}
11... Qb6 {[%clk 0:02:54.9]} 12. c3 {[%clk 0:02:00.3]} 12... c4+ {[%clk
0:02:51]} 13. d4 {[%clk 0:02:01.5]} 13... Be4 {[%clk 0:02:51.7]} 14. Nf3 {[%clk
0:02:02]} 14... h5 {[%clk 0:02:49.1]} 15. Nbd2 {[%clk 0:02:02.4]} 15... g6
{[%clk 0:02:48.8]} 16. b3 {[%clk 0:02:02.6]} 16... cxb3 {[%clk 0:02:46.9]} 17.
axb3 {[%clk 0:02:04.5]} 17... h4 {[%clk 0:02:43]} 18. Nxh4 {[%clk 0:01:59.2]}
18... Nxd4 {[%clk 0:02:43.5]} 19. Qf2 {[%clk 0:01:35.2]} 19... Ng4 {[%clk
0:02:29.1]} 20. Nxe4 {[%clk 0:00:59.3]} 20... Nxe2+ {[%clk 0:02:14.2]} 21. Kh1
{[%clk 0:00:57.5]} 21... Nxf2+ {[%clk 0:02:15.4]} 22. Rxf2 {[%clk 0:00:53.8]}
22... Nxc1 {[%clk 0:02:16.3]} 23. Nf6+ {[%clk 0:00:52.7]} 23... Ke7 {[%clk
0:02:16]} 24. Nxd5+ {[%clk 0:00:52.2]} 24... exd5 {[%clk 0:02:16.2]} 25. Rxc1
{[%clk 0:00:54.1]} 25... Qxf2 {[%clk 0:02:16.6]} 0-1

[Event "*** Titled Tuesday Blitz"]
[Site "Chess.com"]
[Date "2019.10.01"]
[Round "10"]
[White "CzechmVIII"]
[Black "Sjakkerntobi"]
[Result "0-1"]
[WhiteElo "2100"]
[BlackElo "2058"]
[TimeControl "180+2"]
[EndTime "15:24:18 PDT"]
[Termination "Sjakkerntobi won by resignation"]

1. e4 {[%clk 0:03:01.9]} 1... Nc6 {[%clk 0:03:00.8]} 2. Nf3 {[%clk 0:03:02.6]}
2... e6 {[%clk 0:03:01.8]} 3. d4 {[%clk 0:03:02]} 3... d5 {[%clk 0:03:03.3]} 4.
Nc3 {[%clk 0:03:02.6]} 4... Nf6 {[%clk 0:03:03.1]} 5. Bg5 {[%clk 0:02:58.6]}
5... Be7 {[%clk 0:02:59.3]} 6. Bxf6 {[%clk 0:02:55.4]} 6... Bxf6 {[%clk
0:03:01.1]} 7. Qd2 {[%clk 0:02:54.1]} 7... dxe4 {[%clk 0:03:00.5]} 8. Nxe4
{[%clk 0:02:54.7]} 8... Bxd4 {[%clk 0:02:59.8]} 9. O-O-O {[%clk 0:02:29.6]} 9...
Bf6 {[%clk 0:02:57.2]} 10. Qf4 {[%clk 0:02:10.3]} 10... Qe7 {[%clk 0:02:55.2]}
11. Bb5 {[%clk 0:02:04.2]} 11... Bxb2+ {[%clk 0:02:41.6]} 12. Kxb2 {[%clk
0:01:18.5]} 12... Qb4+ {[%clk 0:02:41.6]} 13. Ka1 {[%clk 0:01:16.7]} 13... Qxb5
{[%clk 0:02:42]} 14. Qxc7 {[%clk 0:01:04]} 14... O-O {[%clk 0:02:37.9]} 15. Rhe1
{[%clk 0:00:41.7]} 15... e5 {[%clk 0:02:34.4]} 16. Nd6 {[%clk 0:00:39.2]} 16...
Qc5 {[%clk 0:02:32.2]} 17. Ne4 {[%clk 0:00:26.7]} 17... Qa3 {[%clk 0:02:25.8]}
18. Rd3 {[%clk 0:00:23.7]} 18... Qb4 {[%clk 0:02:22.8]} 19. Qd6 {[%clk
0:00:18.6]} 19... Be6 {[%clk 0:02:10]} 20. Qxb4 {[%clk 0:00:10.2]} 20... Nxb4
{[%clk 0:02:11.9]} 21. Rd6 {[%clk 0:00:08.4]} 21... Nxc2+ {[%clk 0:02:11.4]} 22.
Kb2 {[%clk 0:00:08.9]} 22... Nxe1 {[%clk 0:02:13.3]} 23. Nxe1 {[%clk 0:00:10.4]}
23... Rfd8 {[%clk 0:02:12.8]} 0-1

[Event "*** Titled Tuesday Blitz"]
[Site "Chess.com"]
[Date "2019.10.01"]
[Round "10"]
[White "WeAintSurePal"]
[Black "ferdipy"]
[Result "1-0"]
[WhiteElo "2349"]
[BlackElo "2174"]
[TimeControl "180+2"]
[EndTime "15:24:19 PDT"]
[Termination "WeAintSurePal won by checkmate"]

1. d4 {[%clk 0:03:01.9]} 1... Nf6 {[%clk 0:02:59.9]} 2. Nc3 {[%clk 0:03:03.3]}
2... e6 {[%clk 0:02:59.9]} 3. Bf4 {[%clk 0:03:02.9]} 3... d5 {[%clk 0:02:56.5]}
4. e3 {[%clk 0:03:01.6]} 4... a6 {[%clk 0:02:55.8]} 5. a4 {[%clk 0:03:00.7]}
5... c5 {[%clk 0:02:56.3]} 6. Nf3 {[%clk 0:03:00.9]} 6... Nc6 {[%clk 0:02:56.9]}
7. h3 {[%clk 0:02:58.2]} 7... Qb6 {[%clk 0:02:51]} 8. Qd2 {[%clk 0:02:53.8]}
8... cxd4 {[%clk 0:02:48.1]} 9. exd4 {[%clk 0:02:54.4]} 9... Bb4 {[%clk
0:02:49.3]} 10. Bd3 {[%clk 0:02:53.8]} 10... Ne4 {[%clk 0:02:45.4]} 11. Bxe4
{[%clk 0:02:53.1]} 11... dxe4 {[%clk 0:02:47.3]} 12. Ne5 {[%clk 0:02:53.4]}
12... Qxd4 {[%clk 0:02:33]} 13. Nxc6 {[%clk 0:02:49.6]} 13... Qxd2+ {[%clk
0:02:33.3]} 14. Bxd2 {[%clk 0:02:51.5]} 14... Bxc3 {[%clk 0:02:29.8]} 15. Bxc3
{[%clk 0:02:51]} 15... bxc6 {[%clk 0:02:31.2]} 16. Bb4 {[%clk 0:02:51.5]} 16...
e5 {[%clk 0:02:27.4]} 17. O-O-O {[%clk 0:02:49.5]} 17... Be6 {[%clk 0:02:27.1]}
18. Rd6 {[%clk 0:02:49.4]} 18... Bd5 {[%clk 0:02:26]} 19. Rd1 {[%clk 0:02:47.6]}
19... f5 {[%clk 0:02:17.2]} 20. b3 {[%clk 0:02:45.2]} 20... Rb8 {[%clk
0:02:10.2]} 21. Bc5 {[%clk 0:02:43.1]} 21... Kf7 {[%clk 0:02:03.2]} 22. Rd7+
{[%clk 0:02:41.1]} 22... Kg6 {[%clk 0:01:34.2]} 23. c4 {[%clk 0:02:37.6]} 23...
Rxb3 {[%clk 0:01:30.2]} 24. Kc2 {[%clk 0:02:34.7]} 24... Bxc4 {[%clk 0:01:30]}
25. R1d6+ {[%clk 0:02:34.1]} 25... Kh5 {[%clk 0:01:28.3]} 26. Rxg7 {[%clk
0:02:34]} 26... h6 {[%clk 0:01:07.2]} 27. Rf6 {[%clk 0:02:14.3]} 27... Rg8
{[%clk 0:00:34.5]} 28. Rxf5+ {[%clk 0:02:12.1]} 28... Kh4 {[%clk 0:00:35.8]} 29.
Be7# {[%clk 0:02:13.5]} 1-0